fUSD/lending_fUSD_20260507
["ID","MTS","AMOUNT","RATE_DAILY","PERIOD"]
[421776686,1778139950000,10000.0,0.00030137,120]
[421776682,1778139950000,-1149.68,0.00011289,2]
[421776685,1778139950000,-30.107478,0.00011743,2]
[421776684,1778139950000,-274.428649,0.00011692,2]
[421776689,1778139951000,-3347.18986146,0.00011692,2]
[421776687,1778139951000,-244.32117098,0.00011743,2]
[421776688,1778139951000,-300.0,0.00011788,2]
[421776690,1778139952000,390.0,0.00030137,120]
[421776693,1778139953000,-158.2995324,0.00010701,2]
[421776692,1778139953000,-248.07400725,0.00010701,2]
[421776691,1778139953000,-150.0,0.00011788,2]
[421776695,1778139954000,-150.0,0.00010701,2]
[421776694,1778139954000,-150.0,0.00010701,2]
[421776696,1778139954000,-150.0,0.00010701,2]
[421776697,1778139954000,-150.0,0.00010871,2]
[421776701,1778139954000,-150.0,0.00011551,2]
[421776700,1778139954000,-150.0,0.00011381,2]
[421776698,1778139954000,-150.0,0.00011041,2]
[421776699,1778139954000,-150.0,0.00011211,2]
[421776702,1778139954000,-150.0,0.00011721,2]
[421776703,1778139955000,336.77923081,0.00010959,21]
[421776706,1778140074000,164.0,0.00012,3]
[421776707,1778140084000,257.13,8.76e-05,2]
[421776709,1778140148000,-161.84,0.0001095,2]
[421776708,1778140148000,-328.15,0.00010829,2]
[421776710,1778140148000,-150.0,0.00010959,2]
[421776711,1778140155000,310.0,0.0001189,3]
[421776759,1778140232000,-500.0,0.00011585,2]
[421776757,1778140232000,-500.0,0.00011585,2]
[421776764,1778140232000,-151.0,0.00011585,2]
[421776761,1778140232000,-151.0,0.00011585,2]
[421776762,1778140232000,-151.0,0.00011585,2]
[421776758,1778140232000,-151.0,0.00011585,2]
[421776763,1778140232000,-500.0,0.00011585,2]
[421776765,1778140232000,-151.0,0.00011585,2]
[421776771,1778140232000,-151.0,0.00011585,2]
[421776768,1778140232000,-151.0,0.00011585,2]
[421776760,1778140232000,-151.0,0.00011585,2]
[421776770,1778140232000,-151.0,0.00011585,2]
[421776766,1778140232000,-500.0,0.00011585,2]
[421776773,1778140232000,-151.0,0.00011585,2]
[421776772,1778140232000,-500.0,0.00011585,2]
[421776775,1778140232000,-151.0,0.00011585,2]
[421776767,1778140232000,-151.0,0.00011585,2]
[421776756,1778140232000,-151.0,0.00011585,2]
[421776743,1778140232000,-300.0,0.00011584,2]
[421776755,1778140232000,-500.0,0.00011585,2]
[421776737,1778140232000,-448.42004428,0.0001133,2]
[421776736,1778140232000,-314.57995572,0.0001133,2]
[421776739,1778140232000,-165.63,0.00011387,2]
[421776738,1778140232000,-4390.162307,0.0001133,2]
[421776740,1778140232000,-300.0,0.00011584,2]
[421776742,1778140232000,-1200.0,0.00011584,2]
[421776776,1778140232000,-151.0,0.00011585,2]
[421776741,1778140232000,-150.0,0.00011584,2]
[421776754,1778140232000,-151.0,0.00011585,2]
[421776744,1778140232000,-200.0,0.00011585,2]
[421776746,1778140232000,-500.0,0.00011585,2]
[421776748,1778140232000,-500.0,0.00011585,2]
[421776752,1778140232000,-151.0,0.00011585,2]
[421776747,1778140232000,-151.0,0.00011585,2]
[421776751,1778140232000,-500.0,0.00011585,2]
[421776749,1778140232000,-151.0,0.00011585,2]
[421776750,1778140232000,-415.49134927,0.00011585,2]
[421776753,1778140232000,-500.0,0.00011585,2]
[421776745,1778140232000,-187.72738034,0.00011585,2]
[421776774,1778140232000,-500.0,0.00011585,2]
[421776769,1778140232000,-500.0,0.00011585,2]
[421776779,1778140232000,-151.0,0.00011585,2]
[421776802,1778140232000,-274.42864898,0.00011628,2]
[421776804,1778140232000,-195.44382114,0.00011693,2]
[421776812,1778140232000,-326.02342621,0.00011788,2]
[421776805,1778140232000,-153.12137068,0.0001173,2]
[421776803,1778140232000,-500.0,0.00011671,2]
[421776809,1778140232000,-500.0,0.00011788,2]
[421776811,1778140232000,-500.0,0.00011788,2]
[421776806,1778140232000,-500.0,0.00011781,2]
[421776810,1778140232000,-167.96953145,0.00011788,2]
[421776807,1778140232000,-150.0,0.00011788,2]
[421776808,1778140232000,-302.49877429,0.00011788,2]
[421776813,1778140232000,-500.0,0.00011788,2]
[421776814,1778140232000,-500.0,0.00011788,2]
[421776817,1778140232000,-500.0,0.00011788,2]
[421776816,1778140232000,-500.0,0.00011788,2]
[421776815,1778140232000,-500.0,0.00011788,2]
[421776777,1778140232000,-151.0,0.00011585,2]
[421776801,1778140232000,-2080.17592889,0.00011585,2]
[421776799,1778140232000,-500.0,0.00011585,2]
[421776800,1778140232000,-500.0,0.00011585,2]
[421776798,1778140232000,-151.0,0.00011585,2]
[421776778,1778140232000,-151.0,0.00011585,2]
[421776781,1778140232000,-500.0,0.00011585,2]
[421776780,1778140232000,-151.0,0.00011585,2]
[421776782,1778140232000,-151.0,0.00011585,2]
[421776784,1778140232000,-151.0,0.00011585,2]
[421776783,1778140232000,-500.0,0.00011585,2]
[421776787,1778140232000,-500.0,0.00011585,2]
[421776796,1778140232000,-151.0,0.00011585,2]
[421776786,1778140232000,-151.0,0.00011585,2]
[421776785,1778140232000,-500.0,0.00011585,2]
[421776789,1778140232000,-500.0,0.00011585,2]
[421776791,1778140232000,-500.0,0.00011585,2]
[421776792,1778140232000,-151.0,0.00011585,2]
[421776793,1778140232000,-500.0,0.00011585,2]
[421776794,1778140232000,-151.0,0.00011585,2]
[421776790,1778140232000,-151.0,0.00011585,2]
[421776795,1778140232000,-500.0,0.00011585,2]
[421776797,1778140232000,-500.0,0.00011585,2]
[421776788,1778140232000,-151.0,0.00011585,2]
[421776823,1778140233000,-405.12976652,0.00011788,2]
[421776819,1778140233000,-500.0,0.00011788,2]
[421776820,1778140233000,-500.0,0.00011788,2]
[421776821,1778140233000,-500.0,0.00011788,2]
[421776824,1778140233000,-500.0,0.00011788,2]
[421776828,1778140233000,-24710.56417633,0.00011789,2]
[421776818,1778140233000,-500.0,0.00011788,2]
[421776827,1778140233000,-66631.63403857,0.00011789,2]
[421776822,1778140233000,-500.0,0.00011788,2]
[421776825,1778140233000,-317983.71944334,0.00011789,2]
[421776826,1778140233000,-109591.65760264,0.00011789,2]
[421776829,1778140234000,-8161.54347923,0.00011789,2]
[421776839,1778140238000,-380.52932165,0.00011789,2]
[421776837,1778140238000,-26403.79226853,0.00011789,2]
[421776836,1778140238000,-793.66649967,0.00011789,2]
[421776835,1778140238000,-81635.00000002,0.00011789,2]
[421776887,1778140241000,-0.24001014,0.00011789,2]
[421776903,1778140243000,-165.7905639,0.00011833,2]
[421776898,1778140243000,-8220.0568,0.00011793,2]
[421776899,1778140243000,-5000.0,0.00011793,2]
[421776897,1778140243000,-702608.48935988,0.00011789,2]
[421776900,1778140243000,-2000.0,0.00011793,2]
[421776901,1778140243000,-2500.0,0.00011793,2]
[421776902,1778140243000,-233.98723583,0.00011793,2]
[421776904,1778140243000,-500.0,0.00011873,2]
[421776906,1778140243000,-1093.783,0.00011888,2]
[421776907,1778140243000,-162.50266631,0.00011888,2]
[421776912,1778140243000,-1936.07282185,0.00011893,2]
[421776908,1778140243000,-20849.2826896,0.00011889,2]
[421776909,1778140243000,-1069.4913364,0.00011889,2]
[421776910,1778140243000,-150.0,0.0001189,2]
[421776911,1778140243000,-264790.20067614,0.00011893,2]
[421776905,1778140243000,-500.8491784,0.00011873,2]
[421776922,1778140246000,-904.09809258,0.00011893,2]
[421776921,1778140246000,-505.0,0.00011893,2]
[421776920,1778140246000,-180452.92168247,0.00011893,2]
[421776918,1778140246000,-2242.15534921,0.00011893,2]
[421776919,1778140246000,-9430.35816085,0.00011893,2]
[421776916,1778140246000,-2233.2002,0.00011893,2]
[421776917,1778140246000,-15138.96431859,0.00011893,2]
[421776915,1778140246000,-14678.37508463,0.00011893,2]
[421776926,1778140265000,-10000.01,0.00011893,2]
[421776929,1778140369000,-7200.01,0.00011893,2]
[421776927,1778140369000,-2500.0,0.00011689,2]
[421776928,1778140369000,-300.0,0.00011892,2]
[421776932,1778140370000,-5000.0,0.00011689,2]
[421776933,1778140370000,-5000.01,0.00011793,2]
[421776930,1778140370000,-689.62013441,0.00011793,2]
[421776931,1778140370000,-9310.38986559,0.00011893,2]
[421776935,1778140371000,-10000.01,0.00011689,2]
[421776934,1778140371000,-10000.01,0.00011689,2]
[421776936,1778140372000,-10000.01,0.00011689,2]
[421776937,1778140373000,-10000.01,0.00011689,2]
[421776940,1778140374000,-2000.0,0.00011689,2]
[421776939,1778140374000,500.0,0.0001123,2]
[421776938,1778140374000,-10000.01,0.00011689,2]
[421776941,1778140394000,-544.82694851,0.00011585,2]
[421776942,1778140395000,1477.473217,0.00011527,2]
[421776943,1778140403000,184.75390111,0.00011585,2]
[421776944,1778140441000,150.0,0.00011688,2]
[421776945,1778140441000,300.0,0.00011688,2]
[421776946,1778140442000,300.0,0.00011688,2]
[421776948,1778140445000,593.52799105,0.00011688,2]
[421776947,1778140445000,500.0,0.00011688,2]
[421776957,1778140458000,500.0,0.00011688,2]
[421776950,1778140458000,500.0,0.00011688,2]
[421776952,1778140458000,500.0,0.00011688,2]
[421776951,1778140458000,500.0,0.00011688,2]
[421776953,1778140458000,500.0,0.00011688,2]
[421776954,1778140458000,500.0,0.00011688,2]
[421776955,1778140458000,500.0,0.00011688,2]
[421776956,1778140458000,500.0,0.00011688,2]
[421776959,1778140458000,500.0,0.00011688,2]
[421776949,1778140458000,500.0,0.00011688,2]
[421776960,1778140458000,500.0,0.00011688,2]
[421776961,1778140458000,494.25489084,0.00011688,2]
[421776962,1778140458000,5.74510916,0.00011688,2]
[421776963,1778140458000,500.0,0.00011688,2]
[421776964,1778140458000,500.0,0.00011688,2]
[421776965,1778140458000,500.0,0.00011688,2]
[421776966,1778140458000,500.0,0.00011688,2]
[421776968,1778140458000,456.5606327,0.00011688,2]
[421776969,1778140458000,500.0,0.00011688,2]
[421776967,1778140458000,500.0,0.00011688,2]
[421776958,1778140458000,500.0,0.00011688,2]
[421776970,1778140459000,500.0,0.00011688,2]
[421776971,1778140474000,500.0,0.00011688,2]
[421776973,1778140475000,500.0,0.00011688,2]
[421776974,1778140475000,500.0,0.00011688,2]
[421776972,1778140475000,500.0,0.00011688,2]
[421776977,1778140475000,500.0,0.00011688,2]
[421776976,1778140475000,500.0,0.00011688,2]
[421776979,1778140475000,500.0,0.00011688,2]
[421776978,1778140475000,500.0,0.00011688,2]
[421776975,1778140475000,500.0,0.00011688,2]
[421776980,1778140500000,467.57867201,0.00011688,2]
[421776982,1778140501000,129.87441387,0.00011688,2]
[421776981,1778140501000,1070.12558613,0.00011688,2]
[421776984,1778140539000,310.0,0.0001189,3]
[421776987,1778140540000,10000.01,0.00011589,2]
[421776986,1778140540000,10000.01,0.00011589,2]
[421776985,1778140540000,9870.13558613,0.00011589,2]
[421776989,1778140540000,10000.01,0.00011589,2]
[421776993,1778140540000,10000.01,0.00011589,2]
[421776991,1778140540000,10000.01,0.00011589,2]
[421776988,1778140540000,10000.01,0.00011589,2]
[421776992,1778140540000,10000.01,0.00011589,2]
[421776990,1778140540000,10000.01,0.00011589,2]
[421776997,1778140720000,-7670.74035036,0.00011589,2]
[421776994,1778140720000,-833.43,0.00011344,2]
[421776996,1778140720000,-1343.02964964,0.00011589,2]
[421776995,1778140720000,-152.81,0.00011386,2]
[421776998,1778140721000,-10000.01,0.00011589,2]
[421777000,1778140721000,-10000.01,0.00011589,2]
[421776999,1778140721000,-10000.01,0.00011589,2]
[421777003,1778140731000,1870.46087098,0.00011585,2]
[421777002,1778140731000,184.75390111,0.00011585,2]
[421777001,1778140731000,309.48193511,0.00011585,2]
[421777004,1778140741000,300.0,0.00011588,2]
[421777008,1778140783000,500.0,0.00011588,2]
[421777005,1778140783000,327.30507041,0.00011588,2]
[421777006,1778140783000,500.0,0.00011588,2]
[421777007,1778140783000,265.46959373,0.00011588,2]
[421777010,1778140783000,500.0,0.00011588,2]
[421777014,1778140783000,500.0,0.00011588,2]
[421777011,1778140783000,500.0,0.00011588,2]
[421777015,1778140783000,500.0,0.00011588,2]
[421777016,1778140783000,361.40509069,0.00011588,2]
[421777009,1778140783000,500.27807118,0.00011588,2]
[421777012,1778140783000,500.0,0.00011588,2]
[421777013,1778140783000,467.62042088,0.00011588,2]
[421777018,1778140801000,150.0,0.00011588,2]
[421777017,1778140801000,1200.0,0.00011588,2]
[421777019,1778140826000,500.0,0.00011588,2]
[421777021,1778140827000,436.76495409,0.00011588,2]
[421777020,1778140827000,63.23504591,0.00011588,2]
[421777023,1778140856000,8331.74484505,0.00011508,2]
[421777024,1778140861000,300.0,0.00011588,2]
[421777025,1778140863000,931.50020086,0.00011508,2]
[421777026,1778140878000,310.0,0.0001189,3]
[421777035,1778141154000,706.03,0.00010648,2]
[421777039,1778141190000,-77.76487957,0.000108,2]
[421777037,1778141190000,-150.0,0.000108,2]
[421777038,1778141190000,-150.0,0.000108,2]
[421777041,1778141254000,310.0,0.0001189,3]
[421777042,1778141312000,1812.0,0.00011825,5]
[421777045,1778141343000,-150.0,0.000108,2]
[421777060,1778141343000,-150.0,0.000112,2]
[421777063,1778141343000,-250.0,0.00011357,2]
[421777057,1778141343000,-150.0,0.00010971,2]
[421777058,1778141343000,-150.0,0.00011143,2]
[421777055,1778141343000,-15353.69,0.00010939,2]
[421777056,1778141343000,-8015.28,0.00010966,2]
[421777054,1778141343000,-1200.0,0.00010938,2]
[421777053,1778141343000,-300.0,0.00010937,2]
[421777052,1778141343000,-261.0,0.0001085,2]
[421777051,1778141343000,-150.0,0.000108,2]
[421777050,1778141343000,-150.0,0.000108,2]
[421777049,1778141343000,-150.0,0.000108,2]
[421777047,1778141343000,-150.0,0.000108,2]
[421777048,1778141343000,-150.0,0.000108,2]
[421777046,1778141343000,-150.0,0.000108,2]
[421777044,1778141343000,-72.80523981,0.000108,2]
[421777059,1778141343000,-150.0,0.000112,2]
[421777066,1778141343000,-150.0,0.000114,2]
[421777061,1778141343000,-150.0,0.00011314,2]
[421777081,1778141343000,-500.0,0.00011523,2]
[421777062,1778141343000,-172.1096658,0.00011357,2]
[421777079,1778141343000,-500.0,0.00011523,2]
[421777078,1778141343000,-500.0,0.00011523,2]
[421777076,1778141343000,-500.0,0.00011523,2]
[421777074,1778141343000,-151.0,0.00011523,2]
[421777077,1778141343000,-151.0,0.00011523,2]
[421777075,1778141343000,-500.0,0.00011523,2]
[421777080,1778141343000,-151.0,0.00011523,2]
[421777071,1778141343000,-200.0,0.00011523,2]
[421777070,1778141343000,-150.0,0.00011522,2]
[421777072,1778141343000,-151.0,0.00011523,2]
[421777069,1778141343000,-386.75358264,0.00011508,2]
[421777068,1778141343000,-167.52327528,0.000115,2]
[421777067,1778141343000,-150.0,0.00011486,2]
[421777065,1778141343000,-150.0,0.000114,2]
[421777064,1778141343000,-875.026,0.00011357,2]
[421777073,1778141343000,-500.0,0.00011523,2]
[421777093,1778141344000,-151.0,0.00011523,2]
[421777095,1778141344000,-500.0,0.00011523,2]
[421777092,1778141344000,-500.0,0.00011523,2]
[421777091,1778141344000,-151.0,0.00011523,2]
[421777089,1778141344000,-151.0,0.00011523,2]
[421777090,1778141344000,-500.0,0.00011523,2]
[421777084,1778141344000,-500.0,0.00011523,2]
[421777087,1778141344000,-151.0,0.00011523,2]
[421777086,1778141344000,-500.0,0.00011523,2]
[421777085,1778141344000,-151.0,0.00011523,2]
[421777083,1778141344000,-407.76829297,0.00011523,2]
[421777082,1778141344000,-151.0,0.00011523,2]
[421777094,1778141344000,-151.0,0.00011523,2]
[421777088,1778141344000,-500.0,0.00011523,2]
[421777096,1778141344000,-151.0,0.00011523,2]
[421777097,1778141344000,-151.0,0.00011523,2]
[421777099,1778141344000,-151.0,0.00011523,2]
[421777098,1778141344000,-151.0,0.00011523,2]
[421777112,1778141344000,-151.0,0.00011523,2]
[421777113,1778141344000,-500.0,0.00011523,2]
[421777110,1778141344000,-151.0,0.00011523,2]
[421777109,1778141344000,-500.0,0.00011523,2]
[421777108,1778141344000,-151.0,0.00011523,2]
[421777107,1778141344000,-500.0,0.00011523,2]
[421777111,1778141344000,-500.0,0.00011523,2]
[421777105,1778141344000,-500.0,0.00011523,2]
[421777103,1778141344000,-500.0,0.00011523,2]
[421777104,1778141344000,-151.0,0.00011523,2]
[421777102,1778141344000,-151.0,0.00011523,2]
[421777100,1778141344000,-151.0,0.00011523,2]
[421777101,1778141344000,-151.0,0.00011523,2]
[421777114,1778141344000,-151.0,0.00011523,2]
[421777106,1778141344000,-151.0,0.00011523,2]
[421777123,1778141345000,-151.0,0.00011523,2]
[421777132,1778141345000,-500.0,0.00011588,2]
[421777130,1778141345000,-500.0,0.00011588,2]
[421777127,1778141345000,-2080.17592889,0.00011523,2]
[421777129,1778141345000,-535.82871562,0.00011588,2]
[421777128,1778141345000,-9079.04892855,0.00011587,2]
[421777126,1778141345000,-151.0,0.00011523,2]
[421777124,1778141345000,-500.0,0.00011523,2]
[421777115,1778141345000,-500.0,0.00011523,2]
[421777122,1778141345000,-151.0,0.00011523,2]
[421777121,1778141345000,-500.0,0.00011523,2]
[421777120,1778141345000,-151.0,0.00011523,2]
[421777118,1778141345000,-151.0,0.00011523,2]
[421777119,1778141345000,-500.0,0.00011523,2]
[421777117,1778141345000,-500.0,0.00011523,2]
[421777116,1778141345000,-151.0,0.00011523,2]
[421777131,1778141345000,-500.0,0.00011588,2]
[421777125,1778141345000,-151.0,0.00011523,2]
[421777134,1778141345000,-500.0,0.00011588,2]
[421777133,1778141345000,-500.0,0.00011588,2]
[421777148,1778141345000,-500.0,0.00011588,2]
[421777136,1778141345000,-500.0,0.00011588,2]
[421777153,1778141345000,-500.0,0.00011588,2]
[421777152,1778141345000,-500.0,0.00011588,2]
[421777151,1778141345000,-500.0,0.00011588,2]
[421777149,1778141345000,-500.0,0.00011588,2]
[421777150,1778141345000,-500.0,0.00011588,2]
[421777146,1778141345000,-500.0,0.00011588,2]
[421777145,1778141345000,-500.0,0.00011588,2]
[421777147,1778141345000,-500.0,0.00011588,2]
[421777143,1778141345000,-500.0,0.00011588,2]
[421777141,1778141345000,-500.0,0.00011588,2]
[421777142,1778141345000,-500.0,0.00011588,2]
[421777140,1778141345000,-500.0,0.00011588,2]
[421777138,1778141345000,-500.0,0.00011588,2]
[421777139,1778141345000,-379.17979449,0.00011588,2]
[421777137,1778141345000,-500.0,0.00011588,2]
[421777135,1778141345000,-500.0,0.00011588,2]
[421777144,1778141345000,-500.0,0.00011588,2]
[421777154,1778141345000,-500.0,0.00011588,2]
[421777168,1778141346000,-500.0,0.00011588,2]
[421777167,1778141346000,-500.0,0.00011588,2]
[421777169,1778141346000,-500.0,0.00011588,2]
[421777172,1778141346000,-500.0,0.00011588,2]
[421777173,1778141346000,-500.0,0.00011588,2]
[421777166,1778141346000,-500.0,0.00011588,2]
[421777171,1778141346000,-500.0,0.00011588,2]
[421777164,1778141346000,-500.0,0.00011588,2]
[421777155,1778141346000,-500.0,0.00011588,2]
[421777163,1778141346000,-500.0,0.00011588,2]
[421777162,1778141346000,-500.0,0.00011588,2]
[421777161,1778141346000,-500.0,0.00011588,2]
[421777160,1778141346000,-500.0,0.00011588,2]
[421777159,1778141346000,-500.0,0.00011588,2]
[421777157,1778141346000,-500.0,0.00011588,2]
[421777158,1778141346000,-500.0,0.00011588,2]
[421777156,1778141346000,-500.0,0.00011588,2]
[421777165,1778141346000,-500.0,0.00011588,2]
[421777174,1778141346000,-500.0,0.00011588,2]
[421777170,1778141346000,-500.0,0.00011588,2]
[421777177,1778141346000,-500.0,0.00011588,2]
[421777175,1778141346000,-500.0,0.00011588,2]
[421777194,1778141346000,-500.0,0.00011588,2]
[421777192,1778141346000,-500.0,0.00011588,2]
[421777193,1778141346000,-500.0,0.00011588,2]
[421777191,1778141346000,-500.0,0.00011588,2]
[421777190,1778141346000,-500.0,0.00011588,2]
[421777188,1778141346000,-500.0,0.00011588,2]
[421777187,1778141346000,-500.0,0.00011588,2]
[421777186,1778141346000,-500.0,0.00011588,2]
[421777189,1778141346000,-500.0,0.00011588,2]
[421777184,1778141346000,-500.0,0.00011588,2]
[421777185,1778141346000,-500.0,0.00011588,2]
[421777178,1778141346000,-500.0,0.00011588,2]
[421777179,1778141346000,-500.0,0.00011588,2]
[421777181,1778141346000,-500.0,0.00011588,2]
[421777176,1778141346000,-500.0,0.00011588,2]
[421777182,1778141346000,-500.0,0.00011588,2]
[421777183,1778141346000,-500.0,0.00011588,2]
[421777180,1778141346000,-500.0,0.00011588,2]
[421777201,1778141347000,-500.0,0.00011588,2]
[421777195,1778141347000,-500.0,0.00011588,2]
[421777197,1778141347000,-500.0,0.00011588,2]
[421777196,1778141347000,-500.0,0.00011588,2]
[421777198,1778141347000,-500.0,0.00011588,2]
[421777199,1778141347000,-500.0,0.00011588,2]
[421777200,1778141347000,-500.0,0.00011588,2]
[421777202,1778141347000,-500.0,0.00011588,2]
[421777212,1778141347000,-81992.8925965,0.00011589,2]
[421777204,1778141347000,-500.0,0.00011588,2]
[421777205,1778141347000,-500.0,0.00011588,2]
[421777206,1778141347000,-500.0,0.00011588,2]
[421777207,1778141347000,-499.12618151,0.00011588,2]
[421777209,1778141347000,-151.0,0.00011589,2]
[421777208,1778141347000,-388.79179794,0.00011588,2]
[421777211,1778141347000,-500.0,0.00011589,2]
[421777210,1778141347000,-151.0,0.00011589,2]
[421777203,1778141347000,-500.0,0.00011588,2]
[421777215,1778141369000,-713.11073473,0.00011041,2]
[421777218,1778141382000,158.94,5.895e-05,2]
[421777217,1778141382000,158.94,5.502e-05,2]
[421777220,1778141382000,158.94,6.681e-05,2]
[421777219,1778141382000,158.94,6.288e-05,2]
[421777225,1778141383000,158.94,8.646e-05,2]
[421777224,1778141383000,158.94,8.253e-05,2]
[421777223,1778141383000,158.94,7.86e-05,2]
[421777222,1778141383000,158.94,7.467e-05,2]
[421777221,1778141383000,158.94,7.074e-05,2]
[421777230,1778141384000,158.94,0.0001061,2]
[421777229,1778141384000,158.94,0.00010218,2]
[421777228,1778141384000,158.94,9.825e-05,2]
[421777227,1778141384000,158.94,9.432e-05,2]
[421777226,1778141384000,158.94,9.039e-05,2]
[421777241,1778141432000,-3070.08204455,0.00010983,2]
[421777242,1778141432000,-1466.62795545,0.00010983,2]
[421777243,1778141432000,-1802.68,0.00010986,2]
[421777244,1778141432000,-158.94,0.00011003,2]
[421777246,1778141432000,-1310.31787431,0.00011261,2]
[421777247,1778141432000,-492.36212569,0.00011261,2]
[421777248,1778141432000,-495.59323431,0.00011499,2]
[421777250,1778141432000,-2045.13441185,0.000115,2]
[421777249,1778141432000,-704.40676569,0.00011499,2]
[421777245,1778141432000,-1286.88926527,0.00011041,2]
[421777262,1778141433000,-2000.0,0.00011689,2]
[421777267,1778141433000,-500.0,0.00011699,2]
[421777268,1778141433000,-500.0,0.00011699,2]
[421777270,1778141433000,-504.83208442,0.00011699,2]
[421777269,1778141433000,-502.17716493,0.00011699,2]
[421777265,1778141433000,-500.0,0.00011699,2]
[421777263,1778141433000,-500.0,0.00011699,2]
[421777264,1778141433000,-500.0,0.00011699,2]
[421777260,1778141433000,-246.25959459,0.00011673,2]
[421777266,1778141433000,-500.0,0.00011699,2]
[421777256,1778141433000,-1774768.40720465,0.00011589,2]
[421777255,1778141433000,-5782.08246236,0.00011589,2]
[421777254,1778141433000,-1802.68,0.00011535,2]
[421777259,1778141433000,-150.0,0.00011657,2]
[421777253,1778141433000,-257.83572176,0.000115,2]
[421777258,1778141433000,-150.0,0.000116,2]
[421777251,1778141433000,-5453.43594865,0.000115,2]
[421777257,1778141433000,-150.0,0.000116,2]
[421777252,1778141433000,-4761.25138763,0.000115,2]
[421777261,1778141433000,-33139.5584,0.00011689,2]
[421777272,1778141433000,-1802.68,0.0001181,2]
[421777275,1778141433000,-150.0,0.00011829,2]
[421777274,1778141433000,-14290.66921992,0.00011816,2]
[421777294,1778141433000,-7703.66020037,0.00012,2]
[421777291,1778141433000,-3000.0,0.00011993,2]
[421777296,1778141433000,-153228.58938026,0.00012,2]
[421777293,1778141433000,-150.0,0.00012,2]
[421777292,1778141433000,-3300.0,0.00011993,2]
[421777290,1778141433000,-644.17,0.00011973,2]
[421777288,1778141433000,-236.46073589,0.000119,2]
[421777287,1778141433000,-14926.62091659,0.000119,2]
[421777295,1778141433000,-158957.52577658,0.00012,2]
[421777283,1778141433000,-250.0,0.0001188,2]
[421777280,1778141433000,-500.0,0.0001188,2]
[421777278,1778141433000,-1558.29748271,0.0001188,2]
[421777273,1778141433000,-64283.27113748,0.00011816,2]
[421777276,1778141433000,-1988.24523741,0.0001188,2]
[421777277,1778141433000,-250.0,0.0001188,2]
[421777297,1778141433000,-1254.41808677,0.00012,2]
[421777285,1778141433000,-1000.0,0.00011889,2]
[421777286,1778141433000,-200.0,0.00011893,2]
[421777282,1778141433000,-234.0170913,0.0001188,2]
[421777271,1778141433000,-253.11,0.000117,2]
[421777304,1778141438000,-26403.79226853,0.00012,2]
[421777306,1778141438000,-1470.20473124,0.00012,2]
[421777305,1778141438000,-380.52932165,0.00012,2]
[421777383,1778141439000,500.0,0.000116,4]
[421777639,1778141441000,1100.0,0.000117,4]
[421777890,1778141443000,1600.0,0.000118,4]
[421777916,1778141444000,-156.849,0.00012092,2]
[421777914,1778141444000,-250.0,0.00012081,2]